fUST/lending_fUST_20250430
["ID","MTS","AMOUNT","RATE_DAILY","PERIOD"]
[359439013,1746019841165,-964.724594,0.0002728,7]
[359439014,1746019841182,-964.724594,0.0002728,7]
[359439015,1746019841192,-187.402,0.00027296,16]
[359439016,1746019841202,-172.494973,0.000273,7]
[359439017,1746019841212,-172.494973,0.000273,7]
[359439018,1746019841223,-172.494973,0.000273,7]
[359439019,1746019841233,-172.494973,0.000273,7]
[359439020,1746019841243,-151.0,0.000273,2]
[359439021,1746019841252,-151.0,0.000273,7]
[359439022,1746019841262,-156.390972,0.000273,7]
[359439023,1746019841271,-151.0,0.000273,7]
[359439024,1746019841281,-4905.0,0.000273,2]
[359439025,1746019841290,-182.04053198,0.000273,7]
[359439026,1746019841300,-421.37435881,0.000273,7]
[359439027,1746019841310,-174.83650694,0.00027311,2]
[359439028,1746019841321,-840.90604152,0.00027319,2]
[359439029,1746019841332,-151.0,0.00027319,7]
[359439030,1746019841342,-151.0,0.00027345,7]
[359439031,1746019841354,-153.246383,0.00027345,7]
[359439032,1746019841365,-152.286119,0.00027345,7]
[359439033,1746019841375,-174.83650694,0.00027355,2]
[359439034,1746019841385,-32822.9086529,0.00027366,2]
[359439035,1746019841395,-503.54977946,0.00027373,2]
[359439036,1746019841405,-500.0,0.00027373,2]
[359439037,1746019841415,-543.68454058,0.00027373,2]
[359439038,1746019841429,-500.0,0.00027373,2]
[359439039,1746019841440,-500.0,0.00027373,2]
[359439040,1746019841450,-500.0,0.00027373,2]
[359439041,1746019841459,-300.0,0.00027373,2]
[359439042,1746019841471,-491.88064018,0.00027373,2]
[359439043,1746019841480,-500.0,0.00027373,2]
[359439044,1746019841490,-500.0,0.00027373,2]
[359439045,1746019841499,-500.0,0.00027373,2]
[359439046,1746019841510,-500.0,0.00027373,2]
[359439047,1746019841519,-500.0,0.00027373,2]
[359439048,1746019841687,-500.0,0.00027373,2]
[359439049,1746019841697,-500.0,0.00027373,2]
[359439050,1746019841707,-500.70419105,0.00027373,2]
[359439051,1746019841717,-611.17695204,0.00027373,2]
[359439052,1746019841726,-531.26132297,0.00027373,2]
[359439053,1746019841736,-500.0,0.00027373,2]
[359439054,1746019841746,-259.29199277,0.00027376,2]
[359439055,1746019841755,-530.94236522,0.00027376,2]
[359439056,1746019841765,-172.494973,0.00027376,7]
[359439057,1746019841775,-172.494973,0.00027376,7]
[359439058,1746019841786,-151.0,0.00027376,2]
[359439059,1746019841795,-151.0,0.00027376,7]
[359439060,1746019841806,-151.0,0.00027376,7]
[359439061,1746019841817,-1636.567672,0.00027376,2]
[359439062,1746019841827,-1636.567672,0.00027376,2]
[359439063,1746019841837,-1636.567672,0.00027376,2]
[359439064,1746019841847,-1636.567672,0.00027376,2]
[359439065,1746019841856,-151.0,0.00027376,7]
[359439066,1746019841866,-151.0,0.00027376,7]
[359439067,1746019841875,-151.0,0.00027376,7]
[359439068,1746019841885,-964.724594,0.00027376,7]
[359439069,1746019841895,-964.724594,0.00027376,7]
[359439070,1746019841905,-32822.9086529,0.00027377,2]
[359439071,1746019841914,-32822.9086529,0.00027377,2]
[359439072,1746019841928,-172.494973,0.00027377,7]
[359439073,1746019841938,-172.494973,0.00027377,7]
[359439074,1746019841948,-151.0,0.00027377,2]
[359439075,1746019841958,-151.0,0.00027377,7]
[359439076,1746019841967,-197.911077,0.00027377,7]
[359439077,1746019841977,-1636.567672,0.00027377,2]
[359439078,1746019841987,-1636.567672,0.00027377,2]
[359439079,1746019841997,-151.0,0.00027377,7]
[359439080,1746019842011,-160.0,0.00027377,7]
[359439081,1746019842021,-160.0,0.00027377,7]
[359439082,1746019842031,-151.0,0.00027386,7]
[359439083,1746019842040,-664.46949209,0.00027387,3]
[359439084,1746019842050,-98468.7259588,0.00027387,2]
[359439085,1746019842059,-151.0,0.00027387,7]
[359439086,1746019842067,-151.0,0.00027387,7]
[359439087,1746019842076,-151.0,0.00027387,7]
[359439088,1746019842086,-159.753839,0.00027387,7]
[359439089,1746019842096,-151.0,0.00027387,7]
[359439090,1746019842105,-151.0,0.00027387,7]
[359439091,1746019842114,-151.0,0.00027387,7]
[359439092,1746019842123,-151.0,0.00027387,7]
[359439093,1746019842132,-151.0,0.00027387,2]
[359439094,1746019842142,-286.867645,0.00027387,7]
[359439095,1746019842151,-177.302299,0.00027387,7]
[359439096,1746019842160,-177.302299,0.00027387,7]
[359439097,1746019842174,-177.302299,0.00027387,7]
[359439098,1746019842184,-177.302299,0.00027387,7]
[359439099,1746019842193,-177.302299,0.00027387,7]
[359439100,1746019842203,-177.302299,0.00027387,7]
[359439101,1746019842212,-151.0,0.00027387,7]
[359439102,1746019842221,-151.0,0.00027387,7]
[359439103,1746019842231,-151.0,0.00027387,7]
[359439104,1746019842241,-151.0,0.00027387,7]
[359439105,1746019842251,-151.0,0.00027387,7]
[359439106,1746019842260,-964.724594,0.00027387,7]
[359439107,1746019842270,-964.72460358,0.00027387,7]
[359439108,1746019842280,-151.0,0.00027387,7]
[359439109,1746019842290,-151.0,0.00027387,7]
[359439110,1746019842299,-151.0,0.00027387,7]
[359439111,1746019842309,-182.04053198,0.00027397,2]
[359439112,1746019842319,-160.0,0.00027397,2]
[359439113,1746019842329,-160.0,0.00027397,2]
[359439114,1746019842339,-200.0,0.00027397,2]
[359439115,1746019842348,-400.0,0.00027397,2]
[359439116,1746019842358,-400.0,0.00027397,2]
[359439117,1746019842368,-400.0,0.00027397,2]
[359439118,1746019842377,-400.0,0.00027397,2]
[359439119,1746019842386,-400.0,0.00027397,2]
[359439120,1746019842396,-464.32,0.00027397,2]
[359439121,1746019842405,-400.0,0.00027397,2]
[359439122,1746019842415,-1077.96,0.00027397,2]
[359439123,1746019842427,-400.0,0.00027397,2]
[359439124,1746019842437,-400.0,0.00027397,2]
[359439125,1746019842446,-400.0,0.00027397,2]
[359439126,1746019842456,-206.73751043,0.00027397,2]
[359439127,1746019842466,-400.0,0.00027397,2]
[359439128,1746019842475,-400.0,0.00027397,2]
[359439129,1746019842485,-432.89593742,0.00027397,2]
[359439130,1746019842495,-400.0,0.00027397,2]
[359439131,1746019842504,-400.0,0.00027397,2]
[359439132,1746019842514,-400.0,0.00027397,2]
[359439133,1746019842524,-400.0,0.00027397,2]
[359439134,1746019842533,-400.0,0.00027397,2]
[359439135,1746019842543,-400.0,0.00027397,2]
[359439136,1746019842552,-480.54,0.00027397,2]
[359439137,1746019842562,-400.0,0.00027397,2]
[359439138,1746019842571,-953.6,0.00027397,2]
[359439139,1746019842581,-400.0,0.00027397,2]
[359439140,1746019842590,-400.0,0.00027397,2]
[359439141,1746019842600,-400.0,0.00027397,2]
[359439142,1746019842609,-335.18422877,0.00027397,2]
[359439143,1746019842619,-400.0,0.00027397,2]
[359439144,1746019842629,-400.0,0.00027397,2]
[359439145,1746019842638,-151.0,0.00027397,7]
[359439146,1746019842647,-151.0,0.00027397,7]
[359439147,1746019842658,-151.0,0.00027397,7]
[359439148,1746019842668,-151.0,0.00027397,7]
[359439149,1746019842679,-676.48,0.00027397,2]
[359439150,1746019842688,-253.86901575,0.00027397,2]
[359439151,1746019842698,-400.0,0.00027397,2]
[359439152,1746019842707,-400.0,0.00027397,2]
[359439153,1746019842717,-151.0,0.00027397,7]
[359439154,1746019842726,-981.89,0.00027397,2]
[359439155,1746019842736,-151.0,0.00027397,7]
[359439156,1746019842746,-151.0,0.00027397,7]
[359439158,1746019842755,-151.0,0.00027397,7]
[359439160,1746019842765,-400.0,0.00027397,2]
[359439162,1746019842775,-400.0,0.00027397,2]
[359439163,1746019842784,-310.54397361,0.00027397,2]
[359439164,1746019842794,-406.49049039,0.00027397,2]
[359439165,1746019842804,-567.14,0.00027397,2]
[359439166,1746019842813,-869.24,0.00027397,2]
[359439167,1746019842822,-400.0,0.00027397,2]
[359439169,1746019842831,-400.0,0.00027397,2]
[359439170,1746019842841,-400.0,0.00027397,2]
[359439171,1746019842849,-500.0,0.00027397,2]
[359439172,1746019842858,-500.0,0.00027397,2]
[359439173,1746019842867,-400.0,0.00027397,2]
[359439174,1746019842877,-400.0,0.00027397,2]
[359439175,1746019842886,-172.494973,0.00027397,7]
[359439176,1746019842896,-172.494973,0.00027397,7]
[359439177,1746019842905,-172.494973,0.00027397,7]
[359439178,1746019842915,-172.494973,0.00027397,7]
[359439179,1746019842927,-400.0,0.00027397,2]
[359439180,1746019842937,-172.494973,0.00027397,7]
[359439181,1746019842946,-172.494973,0.00027397,7]
[359439183,1746019842955,-172.494973,0.00027397,7]
[359439185,1746019842965,-158.10979935,0.00027397,2]
[359439187,1746019842974,-172.494973,0.00027397,7]
[359439188,1746019842983,-151.0,0.00027397,7]
[359439192,1746019842992,-284.134257,0.00027397,7]
[359439194,1746019843002,-449.45,0.00027397,2]
[359439196,1746019843011,-400.0,0.00027397,2]
[359439198,1746019843024,-151.0,0.00027397,2]
[359439199,1746019843033,-151.0,0.00027397,2]
[359439200,1746019843043,-221.769767,0.00027397,2]
[359439201,1746019843053,-739.04,0.00027397,2]
[359439202,1746019843063,-910.98,0.00027397,2]
[359439203,1746019843072,-497.84,0.00027397,2]
[359439204,1746019843082,-470.45,0.00027397,2]
[359439205,1746019843093,-400.0,0.00027397,2]
[359439206,1746019843103,-400.0,0.00027397,2]
[359439208,1746019843113,-1570.19,0.00027397,2]
[359439209,1746019843122,-400.0,0.00027397,2]
[359439211,1746019843132,-526.1,0.00027397,2]
[359439212,1746019843141,-400.0,0.00027397,2]
[359439213,1746019843151,-1391.98,0.00027397,2]
[359439214,1746019843160,-400.0,0.00027397,2]
[359439216,1746019843171,-726.31,0.00027397,2]
[359439217,1746019843181,-549.35,0.00027397,2]
[359439218,1746019843190,-400.0,0.00027397,2]
[359439220,1746019843200,-400.0,0.00027397,2]
[359439222,1746019843209,-400.0,0.00027397,2]
[359439225,1746019843219,-400.0,0.00027397,2]
[359439228,1746019843229,-400.0,0.00027397,2]
[359439229,1746019843238,-400.0,0.00027397,2]
[359439231,1746019843248,-400.0,0.00027397,2]
[359439233,1746019843257,-419.14,0.00027397,2]
[359439235,1746019843267,-400.0,0.00027397,2]
[359439237,1746019843276,-400.0,0.00027397,2]
[359439239,1746019843286,-400.0,0.00027397,2]
[359439240,1746019843296,-1018.96,0.00027397,2]
[359439241,1746019843306,-400.0,0.00027397,2]
[359439242,1746019843316,-485.09,0.00027397,2]
[359439243,1746019843325,-400.0,0.00027397,2]
[359439244,1746019843335,-400.0,0.00027397,2]
[359439245,1746019843344,-400.0,0.00027397,2]
[359439246,1746019843353,-400.0,0.00027397,2]
[359439247,1746019843363,-400.0,0.00027397,2]
[359439248,1746019843372,-744.28,0.00027397,2]
[359439249,1746019843382,-421.39,0.00027397,2]
[359439251,1746019843392,-325.92712347,0.00027397,2]
[359439252,1746019843401,-400.0,0.00027397,2]
[359439253,1746019843411,-510.2,0.00027397,2]
[359439254,1746019843421,-177.302299,0.00027397,7]
[359439255,1746019843430,-177.302299,0.00027397,7]
[359439256,1746019843440,-177.302299,0.00027397,7]
[359439257,1746019843449,-177.302299,0.00027397,7]
[359439259,1746019843459,-177.302299,0.00027397,7]
[359439261,1746019843469,-177.302299,0.00027397,7]
[359439262,1746019843478,-177.302299,0.00027397,7]
[359439263,1746019843487,-177.302299,0.00027397,7]
[359439264,1746019843497,-400.0,0.00027397,2]
[359439265,1746019843506,-704.98,0.00027397,2]
[359439266,1746019843516,-588.89,0.00027397,2]
[359439267,1746019843525,-400.0,0.00027397,2]
[359439268,1746019843535,-400.0,0.00027397,2]
[359439269,1746019843544,-400.0,0.00027397,2]
[359439270,1746019843554,-400.0,0.00027397,2]
[359439271,1746019843563,-1636.567672,0.00027397,2]
[359439272,1746019843573,-1636.567672,0.00027397,2]
[359439273,1746019843583,-1636.567672,0.00027397,2]
[359439274,1746019843592,-1636.567672,0.00027397,2]
[359439275,1746019843602,-1636.567672,0.00027397,2]
[359439276,1746019843611,-400.0,0.00027397,2]
[359439277,1746019843621,-1636.5676818,0.00027397,2]
[359439278,1746019843631,-400.0,0.00027397,2]
[359439279,1746019843640,-792.91,0.00027397,2]
[359439280,1746019843650,-400.0,0.00027397,2]
[359439281,1746019843660,-401.07,0.00027397,2]
[359439282,1746019843671,-151.0,0.00027397,7]
[359439283,1746019843683,-151.0,0.00027397,7]
[359439285,1746019843693,-151.0,0.00027397,7]
[359439286,1746019843703,-151.0,0.00027397,7]
[359439287,1746019843712,-400.0,0.00027397,2]
[359439288,1746019843722,-537.09069218,0.00027397,2]
[359439289,1746019843731,-400.0,0.00027397,2]
[359439290,1746019843741,-339.40315856,0.00027397,2]
[359439291,1746019843751,-400.0,0.00027397,2]
[359439292,1746019843761,-400.0,0.00027397,2]
[359439293,1746019843771,-400.0,0.00027397,2]
[359439294,1746019843780,-400.0,0.00027397,2]
[359439295,1746019843790,-328.02,0.00027397,2]
[359439296,1746019843799,-400.0,0.00027397,2]
[359439297,1746019843809,-400.0,0.00027397,2]
[359439298,1746019843819,-531.0,0.00027397,2]
[359439299,1746019843829,-400.0,0.00027397,2]
[359439300,1746019843839,-1000.0,0.00027397,15]
[359439301,1746019843850,-1000.0,0.00027397,15]
[359439302,1746019843859,-1000.0,0.00027397,15]
[359439303,1746019843870,-151.0,0.00027397,7]
[359439304,1746019843879,-1000.0,0.00027397,15]
[359439305,1746019843891,-1000.0,0.00027397,15]
[359439306,1746019843902,-151.0,0.00027397,7]
[359439307,1746019843911,-1000.0,0.00027397,15]
[359439308,1746019843929,-1000.0,0.00027397,15]
[359439309,1746019843942,-151.0,0.00027397,7]
[359439310,1746019843952,-1000.0,0.00027397,15]
[359439311,1746019843962,-1000.0,0.00027397,15]
[359439312,1746019843972,-178.710657,0.00027397,7]
[359439313,1746019843982,-1000.0,0.00027397,15]
[359439314,1746019843992,-1000.0,0.00027397,15]
[359439315,1746019844002,-1000.0,0.00027397,15]
[359439316,1746019844013,-1000.0,0.00027397,15]
[359439317,1746019844022,-1000.0,0.00027397,15]
[359439318,1746019844032,-1000.0,0.00027397,15]
[359439319,1746019844043,-1000.0,0.00027397,15]
[359439320,1746019844053,-667.5000009,0.00027397,15]
[359439321,1746019844063,-778.36,0.00027397,2]
[359439322,1746019844074,-492.02,0.00027397,2]
[359439323,1746019844084,-400.0,0.00027397,2]
[359439324,1746019844097,-400.0,0.00027397,2]
[359439325,1746019844107,-832.99,0.00027397,2]
[359439326,1746019844117,-400.0,0.00027397,2]
[359439327,1746019844127,-400.0,0.00027397,2]
[359439328,1746019844136,-1743.84,0.00027397,2]
[359439329,1746019844146,-400.0,0.00027397,2]
[359439330,1746019844156,-400.0,0.00027397,2]
[359439331,1746019844166,-400.0,0.00027397,2]
[359439332,1746019844179,-400.0,0.00027397,2]
[359439333,1746019844189,-400.0,0.00027397,2]
[359439334,1746019844199,-1158.2,0.00027397,2]
[359439335,1746019844209,-400.0,0.00027397,2]
[359439336,1746019844219,-400.0,0.00027397,2]
[359439337,1746019844229,-930.58,0.00027397,2]
[359439338,1746019844239,-400.0,0.00027397,2]
[359439339,1746019844249,-521.1,0.00027397,2]
[359439340,1746019844259,-400.0,0.00027397,2]
[359439341,1746019844268,-826.23,0.00027397,2]
[359439342,1746019844278,-400.0,0.00027397,2]
[359439343,1746019844288,-400.0,0.00027397,2]
[359439344,1746019844297,-1830.06,0.00027397,2]
[359439345,1746019844307,-400.0,0.00027397,2]
[359439346,1746019844316,-535.41,0.00027397,2]
[359439347,1746019844326,-400.0,0.00027397,2]
[359439348,1746019844336,-702.49,0.00027397,2]
[359439349,1746019844345,-400.0,0.00027397,2]
[359439350,1746019844355,-400.0,0.00027397,2]
[359439351,1746019844364,-400.0,0.00027397,2]
[359439352,1746019844374,-400.0,0.00027397,2]
[359439353,1746019844384,-673.15,0.00027397,2]
[359439354,1746019844393,-400.0,0.00027397,2]
[359439355,1746019844403,-1454.11,0.00027397,2]
[359439356,1746019844412,-400.0,0.00027397,2]
[359439357,1746019844425,-935.47,0.00027397,2]
[359439358,1746019844435,-400.0,0.00027397,2]
[359439359,1746019844444,-400.0,0.00027397,2]
[359439360,1746019844454,-610.88,0.00027397,2]
[359439361,1746019844464,-525.64,0.00027397,2]
[359439362,1746019844474,-400.0,0.00027397,2]
[359439363,1746019844485,-161.50526077,0.00027397,2]
[359439364,1746019844496,-400.0,0.00027397,2]
[359439365,1746019844507,-400.0,0.00027397,2]
[359439366,1746019844516,-422.22,0.00027397,2]
[359439367,1746019844527,-400.0,0.00027397,2]
[359439368,1746019844537,-400.0,0.00027397,2]
[359439369,1746019844547,-1014.12,0.00027397,2]
[359439370,1746019844558,-400.0,0.00027397,2]
[359439371,1746019844574,-400.0,0.00027397,2]
[359439372,1746019844583,-400.0,0.00027397,2]
[359439373,1746019844594,-643.44,0.00027397,2]
[359439374,1746019844605,-400.0,0.00027397,2]
[359439375,1746019844615,-1552.4,0.00027397,2]
[359439376,1746019844625,-1578.34,0.00027397,2]
[359439377,1746019844635,-2085.42,0.00027397,2]
[359439378,1746019844645,-2133.98,0.00027397,2]
[359439379,1746019844819,-400.0,0.00027397,2]
[359439380,1746019844829,-400.0,0.00027397,2]
[359439381,1746019844839,-1255.91,0.00027397,2]
[359439382,1746019844848,-235.68202355,0.00027397,2]
[359439383,1746019844858,-1954.9,0.00027397,2]
[359439384,1746019844867,-495.13939691,0.00027397,2]
[359439385,1746019844877,-400.0,0.00027397,2]
[359439386,1746019844886,-400.0,0.00027397,2]
[359439387,1746019844896,-482.75,0.00027397,2]
[359439388,1746019844905,-400.0,0.00027397,2]
[359439389,1746019844915,-400.0,0.00027397,2]
[359439390,1746019844926,-400.0,0.00027397,2]
[359439391,1746019844935,-400.0,0.00027397,2]
[359439392,1746019844946,-262.698182,0.00027397,7]
[359439393,1746019844956,-400.0,0.00027397,2]
[359439394,1746019844966,-262.698182,0.00027397,7]
[359439395,1746019844976,-204.53791224,0.00027397,2]
[359439396,1746019844985,-400.0,0.00027397,2]
[359439397,1746019844995,-785.98,0.00027397,2]
[359439398,1746019845006,-262.698182,0.00027397,7]
[359439399,1746019845017,-262.698182,0.00027397,7]
[359439400,1746019845027,-400.0,0.00027397,2]
[359439401,1746019845038,-400.0,0.00027397,2]
[359439402,1746019845049,-4593.88,0.00027397,2]
[359439403,1746019845059,-400.0,0.00027397,2]
[359439404,1746019845069,-400.0,0.00027397,2]
[359439405,1746019845078,-400.0,0.00027397,2]
[359439406,1746019845088,-400.0,0.00027397,2]
[359439407,1746019845098,-3156.88,0.00027397,2]
[359439408,1746019845109,-1138.91,0.00027397,2]
[359439409,1746019845119,-400.0,0.00027397,2]
[359439410,1746019845129,-400.0,0.00027397,2]
[359439411,1746019845139,-400.0,0.00027397,2]
[359439412,1746019845148,-1541.01,0.00027397,2]
[359439413,1746019845158,-400.0,0.00027397,2]
[359439414,1746019845168,-583.69,0.00027397,2]
[359439415,1746019845179,-400.0,0.00027397,2]
[359439416,1746019845189,-325.89037028,0.00027397,2]
[359439417,1746019845199,-400.0,0.00027397,2]
[359439418,1746019845208,-569.3,0.00027397,2]
[359439419,1746019845218,-151.0,0.00027397,7]
[359439420,1746019845229,-400.0,0.00027397,2]
[359439421,1746019845240,-400.0,0.00027397,2]
[359439422,1746019845250,-400.0,0.00027397,2]
[359439423,1746019845261,-506.24296459,0.00027397,2]
[359439424,1746019845272,-4251.49,0.00027397,2]
[359439425,1746019845281,-400.0,0.00027397,2]
[359439426,1746019845290,-151.0,0.00027397,7]
[359439427,1746019845298,-151.0,0.00027397,7]
[359439428,1746019845306,-899.88,0.00027397,2]
[359439429,1746019845316,-151.0,0.00027397,7]
[359439430,1746019845326,-151.0,0.00027397,7]
[359439431,1746019845335,-172.85,0.00027397,2]
[359439432,1746019845345,-480.66,0.00027397,2]
[359439433,1746019845355,-400.0,0.00027397,2]
[359439434,1746019845364,-400.0,0.00027397,2]
[359439435,1746019845374,-400.0,0.00027397,2]
[359439436,1746019845383,-664.92,0.00027397,2]
[359439437,1746019845393,-400.0,0.00027397,2]
[359439438,1746019845403,-287.85793972,0.00027397,2]
[359439439,1746019845412,-151.0,0.00027397,7]
[359439440,1746019845423,-151.0,0.00027397,7]
[359439441,1746019845433,-400.0,0.00027397,2]
[359439442,1746019845442,-1069.56,0.00027397,2]
[359439443,1746019845451,-175.0,0.00027397,30]
[359439444,1746019845461,-193.188289,0.00027397,120]
[359439445,1746019845471,-1110.848459,0.00027397,2]
[359439446,1746019845482,-174.83650694,0.000274,2]
[359439447,1746019845492,-32822.9086529,0.0002748,2]
[359439448,1746019845502,-15307.40486047,0.000275,2]
[359439449,1746019845512,-172.494973,0.000275,7]
[359439450,1746019845522,-172.494973,0.000275,7]
[359439451,1746019845532,-636.0,0.000275,2]
[359439452,1746019845542,-151.0,0.000275,7]
[359439453,1746019845552,-151.0,0.000275,7]
[359439454,1746019845561,-151.0,0.000275,7]
[359439455,1746019845572,-215.0738,0.00027538,2]
[359439456,1746019845582,-207.47297824,0.00027619,2]
[359439457,1746019845591,-151.0,0.00027635,7]
[359439458,1746019845601,-177.302299,0.00027635,7]
[359439459,1746019845611,-177.302299,0.00027635,7]
[359439460,1746019845620,-182.04053198,0.00027635,7]
[359439461,1746019845629,-155.654734,0.00027646,7]
[359439462,1746019845639,-10272.72651326,0.0002765,3]
[359439463,1746019845649,-32822.9086529,0.00027651,2]
[359439464,1746019845658,-217.950768,0.00027656,7]
[359439465,1746019845668,-177.302299,0.00027656,7]
[359439466,1746019845679,-177.302299,0.00027656,7]
[359439467,1746019845688,-44927.90182576,0.00027666,2]
[359439468,1746019845708,-416.351307,0.00027666,2]
[359439469,1746019845855,-2823.02593774,0.00027666,2]
[359439470,1746019845886,-994.5,0.00027666,2]
[359439471,1746019845899,-1269.90347678,0.00027666,2]
[359439472,1746019845911,-11202.5326794,0.00027666,2]
[359439482,1746019846545,-70752.19428379,0.00027666,2]
[359439483,1746019846555,-262.698182,0.00027666,7]
[359439484,1746019846565,-262.698182,0.00027666,7]
[359439485,1746019846575,-151.0,0.00027666,7]
[359439486,1746019846585,-151.0,0.00027666,7]
[359439487,1746019846595,-151.0,0.00027666,7]
[359439488,1746019846609,-24032.30227313,0.00027671,2]
[359439489,1746019846619,-400.0,0.00027671,2]
[359439491,1746019846629,-400.0,0.00027671,2]
[359439492,1746019846638,-400.0,0.00027671,2]
[359439493,1746019846649,-400.0,0.00027671,2]
[359439494,1746019846659,-1077.96,0.00027671,2]
[359439495,1746019846670,-400.0,0.00027671,2]
[359439496,1746019846681,-158.70872714,0.00027671,2]
[359439497,1746019846691,-400.0,0.00027671,2]
[359439498,1746019846701,-400.0,0.00027671,2]
[359439499,1746019846711,-400.0,0.00027671,2]
[359439500,1746019846722,-400.0,0.00027671,2]
[359439501,1746019846732,-400.0,0.00027671,2]
[359439502,1746019846743,-400.0,0.00027671,2]
[359439503,1746019846752,-526.97487068,0.00027671,2]
[359439504,1746019846763,-480.54,0.00027671,2]
[359439505,1746019846773,-383.30358615,0.00027671,2]
[359439506,1746019846783,-953.6,0.00027671,2]
[359439507,1746019846793,-400.0,0.00027671,2]
[359439508,1746019846802,-400.0,0.00027671,2]
[359439509,1746019846812,-400.0,0.00027671,2]
[359439510,1746019846822,-676.48,0.00027671,2]
[359439511,1746019846831,-492.75660384,0.00027671,2]
[359439512,1746019846841,-400.0,0.00027671,2]
[359439513,1746019846851,-981.89,0.00027671,2]
[359439514,1746019846861,-400.0,0.00027671,2]
[359439515,1746019846871,-400.0,0.00027671,2]
[359439516,1746019846882,-567.14,0.00027671,2]
[359439517,1746019846892,-869.24,0.00027671,2]
[359439518,1746019846903,-409.07,0.00027671,2]
[359439519,1746019846914,-400.0,0.00027671,2]
[359439520,1746019846926,-400.0,0.00027671,2]
[359439521,1746019846936,-400.0,0.00027671,2]
[359439522,1746019846947,-275.52631555,0.00027671,2]
[359439523,1746019846957,-449.45,0.00027671,2]
[359439524,1746019846967,-400.0,0.00027671,2]
[359439525,1746019846977,-500.0,0.00027671,2]
[359439526,1746019846987,-500.0,0.00027671,2]
[359439527,1746019846997,-739.04,0.00027671,2]
[359439528,1746019847009,-151.0,0.00027671,2]
[359439529,1746019847021,-500.0,0.00027671,2]
[359439530,1746019847031,-910.98,0.00027671,2]
[359439531,1746019847041,-497.84,0.00027671,2]
[359439532,1746019847054,-470.45,0.00027671,2]
[359439533,1746019847064,-400.0,0.00027671,2]
[359439534,1746019847074,-182.31261179,0.00027671,2]
[359439535,1746019847084,-1570.19,0.00027671,2]
[359439536,1746019847094,-400.0,0.00027671,2]
[359439537,1746019847104,-526.1,0.00027671,2]
[359439538,1746019847114,-400.0,0.00027671,2]
[359439539,1746019847123,-1391.98,0.00027671,2]
[359439540,1746019847134,-400.0,0.00027671,2]
[359439541,1746019847143,-726.31,0.00027671,2]
[359439542,1746019847153,-549.35,0.00027671,2]
[359439543,1746019847163,-492.76778243,0.00027671,2]
[359439544,1746019847173,-421.14445402,0.00027671,2]
[359439545,1746019847185,-400.0,0.00027671,2]
[359439546,1746019847195,-423.46957815,0.00027671,2]
[359439547,1746019847205,-400.0,0.00027671,2]
[359439548,1746019847215,-400.0,0.00027671,2]
[359439549,1746019847225,-400.0,0.00027671,2]
[359439550,1746019847236,-419.14,0.00027671,2]
[359439551,1746019847247,-224.13527859,0.00027671,2]
[359439552,1746019847258,-400.0,0.00027671,2]
[359439553,1746019847268,-400.0,0.00027671,2]